[Event "Turkish Cup 2024"]
[Site "Denizli"]
[Date "2024.08.06"]
[Round "11"]
[White "Cakir, Ege"]
[Black "Tirpan, Ceren"]
[Result "1-0"]
[ECO "E62"]
[WhiteElo "1889"]
[BlackElo "1926"]
[Annotator "NA RC"]
[PlyCount "105"]
[EventDate "2024.08.01"]
[EventType "swiss"]
[EventCountry "TUR"]
[SourceTitle "playchess.com"]
[Source "ChessBase"]
[SourceQuality "1"]
[TimeControl "5400+30"]

1. d4 {[%emt 0:01:00]} Nf6 {[%emt 0:01:00]} 2. Nf3 {[%emt 0:00:30]} g6 {[%emt 0:00:00]} 3. c4 {[%emt 0:00:30]} Bg7 {[%emt 0:00:00]} 4. g3 {[%emt 0:00:30]} O-O {[%emt 0:01:30]} 5. Bg2 {[%emt 0:00:30]} d6 {[%emt 0:00:30]} 6. O-O {[%emt 0:00:30]} c6 {[%emt 0:00:00]} 7. Nc3 {[%emt 0:00:30]} Bf5 {[%emt 0:01:00]} 8. Nh4 {[%emt 0:09:30]} Be6 {[%emt 0:06:30]} 9. d5 {[%emt 0:02:30]} Bc8 {[%emt 0:00:30]} 10. e4 {[%emt 0:04:30]} Nbd7 {[%emt 0:14:30]} 11. h3 {[%emt 0:07:30]} Qb6 {[%emt 0:08:30]} 12. Qe2 {[%emt 0:17:30]} Ne5 {[%emt 0:13:30]} 13. Re1 {[%emt 0:01:30]} e6 {[%emt 0:11:30]} 14. Be3 {[%emt 0:08:30]} Qa6 {[%emt 0:06:30]} 15. Bf1 {[%emt 0:06:30]} exd5 {[%emt 0:04:30]} 16. exd5 {[%emt 0:04:30]} cxd5 {[%emt 0:07:30]} 17. cxd5 {[%emt 0:01:30]} Qxe2 {[%emt 0:01:37]} 18. Rxe2 {[%emt 0:00:30]} h6 {[%emt 0:00:23]} 19. f4 {[%emt 0:09:30]} Nc4 {[%emt 0:01:11]} 20. Bd4 {[%emt 0:01:30]} Nb6 {[%emt 0:05:33]} 21. Rd1 {[%emt 0:06:06]} Bd7 {[%emt 0:02:21]} 22. Nf3 {[%emt 0:00:53]} Rfe8 {[%emt 0:00:38]} 23. Rxe8+ {[%emt 0:03:05]} Rxe8 {[%emt 0:00:16]} 24. Kf2 {[%emt 0:01:15]} Ne4+ {[%emt 0:01:22]} 25. Nxe4 {[%emt 0:00:41]} Rxe4 {[%emt 0:00:32]} 26. Bxb6 {[%emt 0:00:30]} axb6 {[%emt 0:00:00]} 27. b3 {[%emt 0:00:00]} Bf6 {[%emt 0:02:23]} 28. Re1 {[%emt 0:04:14]} Rxe1 {[%emt 0:02:58]} 29. Nxe1 {[%emt 0:01:46]} Bf5 {[%emt 0:00:49]} 30. Ke3 {[%emt 0:01:12]} Bb1 {[%emt 0:03:26]} 31. a4 {[%emt 0:00:20]} Bc3 {[%emt 0:00:19]} 32. Nf3 {[%emt 0:01:15]} Kf8 {[%emt 0:00:37]} 33. Bd3 {[%emt 0:00:57]} Ba2 {[%emt 0:00:13]} 34. Bc2 {[%emt 0:00:00]} Ke7 {[%emt 0:01:03]} 35. Nd4 {[%emt 0:00:33]} Kf6 {[%emt 0:01:52]} 36. Ne2 {[%emt 0:00:21]} Bb2 {[%emt 0:00:05]} 37. Kd2 {[%emt 0:01:18]} g5 {[%emt 0:00:05]} 38. Nc3 {[%emt 0:01:49]} gxf4 {[%emt 0:00:50]} 39. gxf4 {[%emt 0:00:39]} Bxb3 {[%emt 0:02:00]} 40. Ne4+ {[%emt 0:01:03]} Kg6 {[%emt 0:01:43]} 41. Bxb3 {[%emt 0:00:33]} Ba3 {[%emt 0:00:08]} 42. Ke3 {[%emt 0:00:22]} Kh5 {[%emt 0:00:55]} 43. Bd1+ {[%emt 0:00:21]} Kg6 {[%emt 0:00:24]} 44. Ng3 {[%emt 0:00:29]} Kf6 {[%emt 0:00:34]} 45. Bc2 {[%emt 0:00:20]} Bc5+ {[%emt 0:00:22]} 46. Kf3 {[%emt 0:00:14]} Ba3 {[%emt 0:00:48]} 47. Kg4 {[%emt 0:00:07]} Bc1 {[%emt 0:00:00]} 48. h4 {[%emt 0:00:36]} Be3 {[%emt 0:00:32]} 49. h5 {[%emt 0:00:30]} Bc1 {[%emt 0:00:30]} 50. Nf5 {[%emt 0:00:00]} b5 {[%emt 0:00:32]} 51. axb5 {[%emt 0:00:00]} b6 {[%emt 0:00:00]} 52. Nxd6 {[%emt 0:00:51]} Be3 {[%emt 0:00:00]} 53. Nc8 {[%emt 0:00:00]} 1-0

[Event "Turkish Cup 2024"]
[Site "Denizli"]
[Date "2024.08.06"]
[Round "11"]
[White "Avsar, Gediz"]
[Black "Tufan, Kerem"]
[Result "1-0"]
[ECO "B27"]
[WhiteElo "1880"]
[BlackElo "1783"]
[Annotator "NA RC"]
[PlyCount "77"]
[EventDate "2024.08.01"]
[EventType "swiss"]
[EventCountry "TUR"]
[SourceTitle "playchess.com"]
[Source "ChessBase"]
[SourceQuality "1"]
[TimeControl "5400+30"]

1. e4 {[%emt 0:01:00]} c5 {[%emt 0:02:00]} 2. Nf3 {[%emt 0:00:30]} g6 {[%emt 0:00:30]} 3. c3 {[%emt 0:00:30]} d5 {[%emt 0:00:30]} 4. e5 {[%emt 0:00:00]} Bg7 {[%emt 0:02:30]} 5. d4 {[%emt 0:00:00]} cxd4 {[%emt 0:00:00]} 6. cxd4 {[%emt 0:00:30]} Bg4 {[%emt 0:05:00]} 7. Bb5+ {[%emt 0:00:00]} Nd7 {[%emt 0:02:30]} 8. Nbd2 {[%emt 0:00:00]} a6 {[%emt 0:01:30]} 9. Bd3 {[%emt 0:01:30]} e6 {[%emt 0:10:30]} 10. h3 {[%emt 0:00:30]} Bxf3 {[%emt 0:00:30]} 11. Nxf3 {[%emt 0:00:00]} Ne7 {[%emt 0:00:30]} 12. O-O {[%emt 0:00:00]} Nc6 {[%emt 0:01:30]} 13. Be3 {[%emt 0:09:30]} O-O {[%emt 0:00:30]} 14. Qd2 {[%emt 0:00:30]} f6 {[%emt 0:04:30]} 15. exf6 {[%emt 0:00:30]} Qxf6 {[%emt 0:00:30]} 16. Rfe1 {[%emt 0:01:30]} Rae8 {[%emt 0:12:30]} 17. Bf1 {[%emt 0:05:30]} Nb6 {[%emt 0:01:30]} 18. Rac1 {[%emt 0:02:30]} Rc8 {[%emt 0:10:30]} 19. Ne5 {[%emt 0:04:30]} Nxe5 {[%emt 0:24:17]} 20. dxe5 {[%emt 0:00:30]} Qd8 {[%emt 0:00:08]} 21. Qb4 {[%emt 0:09:30]} Nd7 {[%emt 0:05:14]} 22. Qxb7 {[%emt 0:13:30]} Rxc1 {[%emt 0:00:47]} 23. Rxc1 {[%emt 0:00:30]} Nxe5 {[%emt 0:01:51]} 24. Qxa6 {[%emt 0:05:30]} Qf6 {[%emt 0:01:52]} 25. Rc8 {[%emt 0:04:30]} g5 {[%emt 0:01:08]} 26. Bc5 {[%emt 0:02:30]} Rxc8 {[%emt 0:01:05]} 27. Qxc8+ {[%emt 0:00:00]} Kf7 {[%emt 0:00:00]} 28. Bb5 {[%emt 0:02:00]} Kg6 {[%emt 0:00:48]} 29. a4 {[%emt 0:02:30]} g4 {[%emt 0:01:11]} 30. Qe8+ {[%emt 0:03:30]} Nf7 {[%emt 0:05:58]} 31. hxg4 {[%emt 0:01:30]} e5 {[%emt 0:02:14]} 32. Bd7 {[%emt 0:05:30]} d4 {[%emt 0:01:48]} 33. Be6 {[%emt 0:01:30]} h6 {[%emt 0:00:35]} 34. a5 {[%emt 0:00:30]} e4 {[%emt 0:00:14]} 35. Bxd4 {[%emt 0:01:30]} Qxd4 {[%emt 0:00:44]} 36. Qxf7+ {[%emt 0:00:00]} Kh7 {[%emt 0:00:16]} 37. Bf5+ {[%emt 0:00:00]} Kh8 {[%emt 0:00:30]} 38. Qe8+ {[%emt 0:00:00]} Bf8 {[%emt 0:00:15]} 39. Qxf8# {[%emt 0:00:00]} 1-0

[Event "Turkish Cup 2024"]
[Site "Denizli"]
[Date "2024.08.06"]
[Round "11"]
[White "Yasin, Hur"]
[Black "Madsman, Berk"]
[Result "1-0"]
[ECO "D02"]
[WhiteElo "1879"]
[BlackElo "1797"]
[Annotator "NA RC"]
[PlyCount "83"]
[EventDate "2024.08.01"]
[EventType "swiss"]
[EventCountry "TUR"]
[SourceTitle "playchess.com"]
[Source "ChessBase"]
[SourceQuality "1"]
[TimeControl "5400+30"]

1. d4 {[%emt 0:05:00]} d5 {[%emt 0:01:00]} 2. Bf4 {[%emt 0:00:00]} Nf6 {[%emt 0:00:00]} 3. Nf3 {[%emt 0:01:00]} e6 {[%emt 0:00:00]} 4. e3 {[%emt 0:00:30]} Bd6 {[%emt 0:00:30]} 5. Bg3 {[%emt 0:00:30]} O-O {[%emt 0:00:30]} 6. Ne5 {[%emt 0:00:30]} c5 {[%emt 0:02:30]} 7. c3 {[%emt 0:01:30]} Qc7 {[%emt 0:02:30]} 8. Bd3 {[%emt 0:00:30]} Nbd7 {[%emt 0:00:30]} 9. f4 {[%emt 0:00:30]} b6 {[%emt 0:02:30]} 10. Nd2 {[%emt 0:01:30]} Bb7 {[%emt 0:01:30]} 11. Qf3 {[%emt 0:00:30]} Ne8 {[%emt 0:13:30]} 12. Bh4 {[%emt 0:16:30]} f6 {[%emt 0:03:30]} 13. Qh5 {[%emt 0:08:30]} f5 {[%emt 0:00:30]} 14. Ndf3 {[%emt 0:10:30]} Nef6 {[%emt 0:01:30]} 15. Bxf6 {[%emt 0:00:30]} Nxf6 {[%emt 0:00:30]} 16. Qh3 {[%emt 0:02:30]} Bxe5 {[%emt 0:04:30]} 17. fxe5 {[%emt 0:01:30]} Ng4 {[%emt 0:06:30]} 18. Ng5 {[%emt 0:00:30]} Rfe8 {[%emt 0:00:30]} 19. Qxh7+ {[%emt 0:03:30]} Kf8 {[%emt 0:00:00]} 20. Qh8+ {[%emt 0:02:30]} Ke7 {[%emt 0:00:00]} 21. Qxg7+ {[%emt 0:00:30]} Kd8 {[%emt 0:00:30]} 22. Nf7+ {[%emt 0:00:30]} Kc8 {[%emt 0:00:00]} 23. Nd6+ {[%emt 0:01:30]} Kb8 {[%emt 0:00:00]} 24. Nxe8 {[%emt 0:00:30]} Qxg7 {[%emt 0:00:30]} 25. Nxg7 {[%emt 0:00:30]} Bc8 {[%emt 0:00:00]} 26. Ke2 {[%emt 0:00:30]} Kc7 {[%emt 0:00:00]} 27. h3 {[%emt 0:01:30]} Nh6 {[%emt 0:00:30]} 28. g4 {[%emt 0:00:00]} fxg4 {[%emt 0:00:00]} 29. hxg4 {[%emt 0:00:00]} Nxg4 {[%emt 0:00:00]} 30. Rag1 {[%emt 0:00:30]} Nxe5 {[%emt 0:00:00]} 31. dxe5 {[%emt 0:00:30]} c4 {[%emt 0:00:00]} 32. Bc2 {[%emt 0:00:30]} Bd7 {[%emt 0:00:30]} 33. Rh7 {[%emt 0:00:30]} Kc6 {[%emt 0:00:00]} 34. Rg6 {[%emt 0:01:30]} Rg8 {[%emt 0:00:00]} 35. Nxe6 {[%emt 0:01:30]} Rxg6 {[%emt 0:00:30]} 36. Nd4+ {[%emt 0:00:30]} Kc7 {[%emt 0:00:30]} 37. Bxg6 {[%emt 0:00:00]} Kd8 {[%emt 0:00:00]} 38. e6 {[%emt 0:01:00]} Bxe6 {[%emt 0:00:00]} 39. Nxe6+ {[%emt 0:00:00]} Kc8 {[%emt 0:00:00]} 40. Nd4 {[%emt 0:00:00]} a5 {[%emt 0:00:00]} 41. Nc6 {[%emt 0:00:30]} a4 {[%emt 0:00:30]} 42. Bf5# {[%emt 0:00:30]} 1-0

[Event "Turkish Cup 2024"]
[Site "Denizli"]
[Date "2024.08.06"]
[Round "11"]
[White "Eroglu, Berke"]
[Black "Topal, Hasan Gokmen"]
[Result "1/2-1/2"]
[ECO "B25"]
[WhiteElo "1873"]
[BlackElo "1905"]
[Annotator "NA RC"]
[PlyCount "109"]
[EventDate "2024.08.01"]
[EventType "swiss"]
[EventCountry "TUR"]
[SourceTitle "playchess.com"]
[Source "ChessBase"]
[SourceQuality "1"]
[TimeControl "5400+30"]

1. e4 {[%emt 0:01:00]} c5 {[%emt 0:01:00]} 2. Nc3 {[%emt 0:01:30]} Nc6 {[%emt 0:00:30]} 3. g3 {[%emt 0:00:30]} g6 {[%emt 0:00:30]} 4. Bg2 {[%emt 0:00:30]} Bg7 {[%emt 0:00:00]} 5. d3 {[%emt 0:00:00]} d6 {[%emt 0:00:00]} 6. Be3 {[%emt 0:00:00]} Nf6 {[%emt 0:00:00]} 7. h3 {[%emt 0:00:00]} Rb8 {[%emt 0:00:00]} 8. f4 {[%emt 0:00:00]} O-O {[%emt 0:00:30]} 9. Nf3 {[%emt 0:04:30]} b5 {[%emt 0:01:30]} 10. O-O {[%emt 0:00:30]} Nd7 {[%emt 0:00:00]} 11. Qc1 {[%emt 0:01:30]} Nd4 {[%emt 0:03:00]} 12. Rf2 {[%emt 0:02:30]} b4 {[%emt 0:01:30]} 13. Ne2 {[%emt 0:00:30]} Nxe2+ {[%emt 0:06:30]} 14. Rxe2 {[%emt 0:00:30]} a5 {[%emt 0:00:00]} 15. g4 {[%emt 0:01:30]} a4 {[%emt 0:02:00]} 16. Rb1 {[%emt 0:01:30]} Ba6 {[%emt 0:01:30]} 17. b3 {[%emt 0:02:30]} axb3 {[%emt 0:00:00]} 18. axb3 {[%emt 0:00:00]} e6 {[%emt 0:02:00]} 19. f5 {[%emt 0:07:00]} exf5 {[%emt 0:15:30]} 20. gxf5 {[%emt 0:01:30]} Re8 {[%emt 0:07:30]} 21. fxg6 {[%emt 0:07:30]} hxg6 {[%emt 0:00:00]} 22. Rf2 {[%emt 0:03:30]} Ne5 {[%emt 0:06:00]} 23. Bg5 {[%emt 0:03:30]} Qd7 {[%emt 0:06:30]} 24. Nxe5 {[%emt 0:05:30]} Rxe5 {[%emt 0:10:30]} 25. Bf6 {[%emt 0:01:30]} Bxf6 {[%emt 0:01:30]} 26. Rxf6 {[%emt 0:00:30]} Qe7 {[%emt 0:00:30]} 27. Qf4 {[%emt 0:03:30]} Bc8 {[%emt 0:02:30]} 28. Qh4 {[%emt 0:06:30]} Kg7 {[%emt 0:05:30]} 29. Rbf1 {[%emt 0:11:30]} Bf5 {[%emt 0:04:30]} 30. R1xf5 {[%emt 0:00:30]} gxf5 {[%emt 0:00:00]} 31. Qh6+ {[%emt 0:03:30]} Kg8 {[%emt 0:00:00]} 32. exf5 {[%emt 0:02:30]} Re1+ {[%emt 0:02:30]} 33. Kf2 {[%emt 0:00:00]} Qe2+ {[%emt 0:01:30]} 34. Kg3 {[%emt 0:00:00]} Rg1 {[%emt 0:06:10]} 35. Qg5+ {[%emt 0:03:30]} Kf8 {[%emt 0:00:04]} 36. Qh6+ {[%emt 0:03:30]} Kg8 {[%emt 0:00:03]} 37. Qg5+ {[%emt 0:00:30]} Kf8 {[%emt 0:00:03]} 38. Qh6+ {[%emt 0:00:00]} Ke8 {[%emt 0:00:42]} 39. Re6+ {[%emt 0:03:00]} fxe6 {[%emt 0:00:18]} 40. Qh8+ {[%emt 0:00:30]} Kf7 {[%emt 0:05:39]} 41. Qh7+ {[%emt 0:00:30]} Kf8 {[%emt 0:00:05]} 42. Qh8+ {[%emt 0:00:30]} Kf7 {[%emt 0:00:04]} 43. Qh7+ {[%emt 0:00:30]} Kf6 {[%emt 0:00:06]} 44. Qg6+ {[%emt 0:00:30]} Ke7 {[%emt 0:00:11]} 45. Qg7+ {[%emt 0:00:30]} Ke8 {[%emt 0:00:17]} 46. Qg8+ {[%emt 0:00:30]} Ke7 {[%emt 0:00:09]} 47. Qg7+ {[%emt 0:00:00]} Ke8 {[%emt 0:00:18]} 48. Qg8+ {[%emt 0:01:00]} Kd7 {[%emt 0:00:30]} 49. Qf7+ {[%emt 0:00:00]} Kd8 {[%emt 0:00:10]} 50. Qf8+ {[%emt 0:00:00]} Kd7 {[%emt 0:00:00]} 51. Qf7+ {[%emt 0:00:30]} Kd8 {[%emt 0:00:16]} 52. Qf8+ {[%emt 0:00:30]} Kc7 {[%emt 0:00:30]} 53. Qe7+ {[%emt 0:00:00]} Kc8 {[%emt 0:00:00]} 54. Qe8+ {[%emt 0:00:00]} Kc7 {[%emt 0:00:00]} 55. Qe7+ {[%emt 0:00:00]} 1/2-1/2

[Event "Turkish Cup 2024"]
[Site "Denizli"]
[Date "2024.08.06"]
[Round "11"]
[White "Degirmenci, Yagiz"]
[Black "Karapinar, Yalin"]
[Result "1/2-1/2"]
[ECO "A00"]
[WhiteElo "1871"]
[BlackElo "1785"]
[Annotator "NA RC"]
[PlyCount "62"]
[EventDate "2024.08.01"]
[EventType "swiss"]
[EventCountry "TUR"]
[SourceTitle "playchess.com"]
[Source "ChessBase"]
[SourceQuality "1"]
[TimeControl "5400+30"]

1. a3 {[%emt 0:07:00]} Nf6 {[%emt 0:01:00]} 2. c4 {[%emt 0:00:30]} g6 {[%emt 0:00:00]} 3. Nc3 {[%emt 0:00:30]} d5 {[%emt 0:00:00]} 4. e3 {[%emt 0:01:30]} Bg7 {[%emt 0:00:30]} 5. Nf3 {[%emt 0:01:30]} c5 {[%emt 0:00:30]} 6. cxd5 {[%emt 0:05:30]} Nxd5 {[%emt 0:00:30]} 7. Qa4+ {[%emt 0:06:30]} Bd7 {[%emt 0:09:30]} 8. Qh4 {[%emt 0:03:30]} Nxc3 {[%emt 0:00:30]} 9. dxc3 {[%emt 0:01:30]} Nc6 {[%emt 0:08:30]} 10. e4 {[%emt 0:07:30]} h6 {[%emt 0:04:30]} 11. Be2 {[%emt 0:03:30]} e5 {[%emt 0:00:30]} 12. Qg3 {[%emt 0:04:30]} Qe7 {[%emt 0:02:30]} 13. O-O {[%emt 0:01:30]} O-O {[%emt 0:05:30]} 14. b4 {[%emt 0:04:30]} Rfd8 {[%emt 0:03:30]} 15. Be3 {[%emt 0:00:30]} b6 {[%emt 0:00:30]} 16. h4 {[%emt 0:03:30]} Be8 {[%emt 0:02:30]} 17. Bc4 {[%emt 0:00:30]} Kh8 {[%emt 0:04:30]} 18. Bd5 {[%emt 0:10:30]} Rac8 {[%emt 0:01:30]} 19. b5 {[%emt 0:01:30]} Na5 {[%emt 0:01:30]} 20. c4 {[%emt 0:03:30]} Nb3 {[%emt 0:03:30]} 21. Rab1 {[%emt 0:02:30]} Nd4 {[%emt 0:01:30]} 22. Nxd4 {[%emt 0:00:30]} cxd4 {[%emt 0:00:30]} 23. Bd2 {[%emt 0:00:30]} f5 {[%emt 0:09:30]} 24. Bb4 {[%emt 0:03:30]} Qc7 {[%emt 0:00:30]} 25. Qd3 {[%emt 0:10:20]} Bf7 {[%emt 0:02:30]} 26. f4 {[%emt 0:04:44]} Bxd5 {[%emt 0:08:30]} 27. cxd5 {[%emt 0:00:07]} exf4 {[%emt 0:04:30]} 28. d6 {[%emt 0:01:01]} Qd7 {[%emt 0:01:30]} 29. exf5 {[%emt 0:00:21]} Qxf5 {[%emt 0:00:00]} 30. Qxf5 {[%emt 0:00:55]} gxf5 {[%emt 0:00:00]} 31. Rxf4 {[%emt 0:00:00]} Be5 {[%emt 0:01:30]} 1/2-1/2

[Event "Turkish Cup 2024"]
[Site "Denizli"]
[Date "2024.08.06"]
[Round "11"]
[White "Zuberoglu, Ibrahim Berk"]
[Black "Cevizci, Yusuf Baran"]
[Result "0-1"]
[ECO "B15"]
[WhiteElo "1870"]
[BlackElo "2102"]
[Annotator "NA RC"]
[PlyCount "108"]
[EventDate "2024.08.01"]
[EventType "swiss"]
[EventCountry "TUR"]
[SourceTitle "playchess.com"]
[Source "ChessBase"]
[SourceQuality "1"]
[TimeControl "5400+30"]

1. e4 {[%emt 0:01:00]} c6 {[%emt 0:08:00]} 2. d4 {[%emt 0:00:00]} d5 {[%emt 0:02:30]} 3. Nc3 {[%emt 0:00:00]} dxe4 {[%emt 0:00:30]} 4. Nxe4 {[%emt 0:00:00]} Nf6 {[%emt 0:00:00]} 5. Nxf6+ {[%emt 0:00:00]} exf6 {[%emt 0:00:00]} 6. Be3 {[%emt 0:00:30]} Be6 {[%emt 0:00:30]} 7. Bd3 {[%emt 0:00:30]} Na6 {[%emt 0:03:30]} 8. a3 {[%emt 0:01:30]} Bd6 {[%emt 0:01:30]} 9. Ne2 {[%emt 0:00:30]} Nc7 {[%emt 0:01:30]} 10. c4 {[%emt 0:02:30]} Qd7 {[%emt 0:01:30]} 11. Ng3 {[%emt 0:04:30]} Kf8 {[%emt 0:05:30]} 12. Qc2 {[%emt 0:07:30]} h5 {[%emt 0:03:30]} 13. Nf5 {[%emt 0:01:30]} g6 {[%emt 0:01:30]} 14. Nxd6 {[%emt 0:06:30]} Qxd6 {[%emt 0:00:00]} 15. d5 {[%emt 0:04:30]} cxd5 {[%emt 0:06:00]} 16. cxd5 {[%emt 0:00:30]} Qxd5 {[%emt 0:00:00]} 17. Be4 {[%emt 0:06:30]} Qc4 {[%emt 0:02:00]} 18. Qxc4 {[%emt 0:03:30]} Bxc4 {[%emt 0:00:00]} 19. O-O-O {[%emt 0:00:30]} Be6 {[%emt 0:05:00]} 20. Bf4 {[%emt 0:05:30]} Kg7 {[%emt 0:02:30]} 21. Kb1 {[%emt 0:01:30]} Rac8 {[%emt 0:04:30]} 22. Bxb7 {[%emt 0:01:30]} Rb8 {[%emt 0:03:30]} 23. Bc6 {[%emt 0:04:30]} Rb6 {[%emt 0:00:30]} 24. Bd7 {[%emt 0:01:30]} Nd5 {[%emt 0:01:30]} 25. Be3 {[%emt 0:07:30]} Nxe3 {[%emt 0:07:30]} 26. fxe3 {[%emt 0:00:30]} Rhb8 {[%emt 0:00:30]} 27. b4 {[%emt 0:08:30]} a5 {[%emt 0:01:30]} 28. Bxe6 {[%emt 0:00:30]} Rxe6 {[%emt 0:00:30]} 29. Kc2 {[%emt 0:04:30]} Rxe3 {[%emt 0:01:30]} 30. bxa5 {[%emt 0:01:30]} Ra8 {[%emt 0:00:30]} 31. Rd3 {[%emt 0:01:30]} Re2+ {[%emt 0:02:30]} 32. Rd2 {[%emt 0:03:30]} Rc8+ {[%emt 0:00:30]} 33. Kd3 {[%emt 0:01:30]} Re5 {[%emt 0:00:30]} 34. Ra1 {[%emt 0:04:17]} Rxa5 {[%emt 0:00:00]} 35. Rc2 {[%emt 0:02:50]} Rd5+ {[%emt 0:03:00]} 36. Ke4 {[%emt 0:00:01]} Rxc2 {[%emt 0:00:30]} 37. Kxd5 {[%emt 0:00:06]} Rxg2 {[%emt 0:00:30]} 38. a4 {[%emt 0:02:19]} Rxh2 {[%emt 0:00:30]} 39. a5 {[%emt 0:01:17]} Rd2+ {[%emt 0:00:30]} 40. Kc6 {[%emt 0:00:30]} Rd8 {[%emt 0:00:00]} 41. Kb7 {[%emt 0:01:20]} h4 {[%emt 0:00:00]} 42. a6 {[%emt 0:00:30]} g5 {[%emt 0:00:00]} 43. Rc1 {[%emt 0:01:49]} Rd2 {[%emt 0:00:00]} 44. Ra1 {[%emt 0:03:58]} Rd7+ {[%emt 0:01:30]} 45. Kc6 {[%emt 0:02:12]} Ra7 {[%emt 0:00:30]} 46. Kb6 {[%emt 0:00:00]} Rxa6+ {[%emt 0:00:30]} 47. Rxa6 {[%emt 0:00:31]} h3 {[%emt 0:00:00]} 48. Ra2 {[%emt 0:02:11]} g4 {[%emt 0:00:00]} 49. Rh2 {[%emt 0:01:45]} f5 {[%emt 0:00:30]} 50. Kc5 {[%emt 0:00:01]} f4 {[%emt 0:00:30]} 51. Kd4 {[%emt 0:00:45]} g3 {[%emt 0:00:00]} 52. Rxh3 {[%emt 0:01:26]} g2 {[%emt 0:00:00]} 53. Ke4 {[%emt 0:00:30]} g1=Q {[%emt 0:00:30]} 54. Kxf4 {[%emt 0:00:00]} Qd4+ {[%emt 0:00:00]} 0-1

[Event "Turkish Cup 2024"]
[Site "Denizli"]
[Date "2024.08.06"]
[Round "11"]
[White "Selvi, Kaan"]
[Black "Ilgaz, Yusuf Kerem"]
[Result "1-0"]
[ECO "B20"]
[WhiteElo "1863"]
[BlackElo "2006"]
[Annotator "NA RC"]
[PlyCount "57"]
[EventDate "2024.08.01"]
[EventType "swiss"]
[EventCountry "TUR"]
[SourceTitle "playchess.com"]
[Source "ChessBase"]
[SourceQuality "1"]
[TimeControl "5400+30"]

1. e4 {[%emt 0:01:00]} c5 {[%emt 0:01:00]} 2. b3 {[%emt 0:00:30]} g6 {[%emt 0:00:00]} 3. Bb2 {[%emt 0:00:30]} Nf6 {[%emt 0:00:00]} 4. e5 {[%emt 0:11:30]} Nd5 {[%emt 0:00:30]} 5. Nc3 {[%emt 0:02:30]} Nxc3 {[%emt 0:00:30]} 6. Bxc3 {[%emt 0:00:00]} Bg7 {[%emt 0:00:30]} 7. Nf3 {[%emt 0:03:00]} Nc6 {[%emt 0:03:30]} 8. Bc4 {[%emt 0:08:30]} O-O {[%emt 0:09:30]} 9. O-O {[%emt 0:01:30]} a6 {[%emt 0:02:30]} 10. a4 {[%emt 0:00:30]} d5 {[%emt 0:02:30]} 11. exd6 {[%emt 0:00:30]} e5 {[%emt 0:00:30]} 12. Qe2 {[%emt 0:05:30]} Qxd6 {[%emt 0:02:30]} 13. Rae1 {[%emt 0:01:30]} Nd4 {[%emt 0:05:30]} 14. Bxd4 {[%emt 0:01:30]} exd4 {[%emt 0:00:00]} 15. Qe7 {[%emt 0:00:30]} Qxe7 {[%emt 0:20:00]} 16. Rxe7 {[%emt 0:00:30]} h6 {[%emt 0:05:30]} 17. a5 {[%emt 0:07:30]} Rb8 {[%emt 0:02:30]} 18. Ne5 {[%emt 0:01:30]} Bf6 {[%emt 0:05:30]} 19. Rxf7 {[%emt 0:01:30]} Rxf7 {[%emt 0:00:00]} 20. Nxf7 {[%emt 0:00:30]} Kg7 {[%emt 0:00:00]} 21. Nd6 {[%emt 0:01:30]} Bd7 {[%emt 0:01:30]} 22. Re1 {[%emt 0:06:30]} Bc6 {[%emt 0:01:30]} 23. Bd3 {[%emt 0:07:30]} Bg5 {[%emt 0:02:30]} 24. Re6 {[%emt 0:02:30]} Bd5 {[%emt 0:11:30]} 25. Rxg6+ {[%emt 0:04:30]} Kh8 {[%emt 0:00:30]} 26. Be4 {[%emt 0:02:30]} Bg8 {[%emt 0:06:55]} 27. d3 {[%emt 0:00:30]} Bd2 {[%emt 0:01:12]} 28. Bxb7 {[%emt 0:06:30]} Bf4 {[%emt 0:05:04]} 29. Be4 {[%emt 0:01:30]} 1-0

[Event "Turkish Cup 2024"]
[Site "Denizli"]
[Date "2024.08.06"]
[Round "11"]
[White "Sozat, Arda"]
[Black "Karaalioglu, Zeynel Mansur"]
[Result "1/2-1/2"]
[ECO "A36"]
[WhiteElo "1836"]
[BlackElo "1758"]
[Annotator "NA RC"]
[PlyCount "70"]
[EventDate "2024.08.01"]
[EventType "swiss"]
[EventCountry "TUR"]
[SourceTitle "playchess.com"]
[Source "ChessBase"]
[SourceQuality "1"]
[TimeControl "5400+30"]

1. c4 {[%emt 0:07:00]} Nf6 {[%emt 0:01:00]} 2. Nc3 {[%emt 0:00:30]} g6 {[%emt 0:00:00]} 3. e4 {[%emt 0:01:30]} d6 {[%emt 0:00:00]} 4. g3 {[%emt 0:00:30]} Bg7 {[%emt 0:00:30]} 5. Bg2 {[%emt 0:00:00]} c5 {[%emt 0:04:30]} 6. Nge2 {[%emt 0:00:00]} Nc6 {[%emt 0:00:30]} 7. d3 {[%emt 0:01:30]} O-O {[%emt 0:03:30]} 8. O-O {[%emt 0:01:30]} e5 {[%emt 0:01:30]} 9. a3 {[%emt 0:01:30]} Nd4 {[%emt 0:00:30]} 10. b4 {[%emt 0:01:30]} b6 {[%emt 0:04:30]} 11. h3 {[%emt 0:05:30]} Ne8 {[%emt 0:02:30]} 12. Nxd4 {[%emt 0:05:30]} cxd4 {[%emt 0:00:30]} 13. Nd5 {[%emt 0:00:30]} Nc7 {[%emt 0:02:30]} 14. f4 {[%emt 0:04:30]} Nxd5 {[%emt 0:00:30]} 15. exd5 {[%emt 0:00:30]} f5 {[%emt 0:03:30]} 16. fxe5 {[%emt 0:01:30]} Bxe5 {[%emt 0:01:30]} 17. Bf4 {[%emt 0:00:30]} Bb7 {[%emt 0:00:30]} 18. Qb3 {[%emt 0:01:30]} Kg7 {[%emt 0:05:30]} 19. c5 {[%emt 0:11:30]} bxc5 {[%emt 0:09:30]} 20. bxc5 {[%emt 0:06:30]} Rf7 {[%emt 0:03:30]} 21. Bxe5+ {[%emt 0:06:30]} dxe5 {[%emt 0:00:00]} 22. d6 {[%emt 0:08:30]} Bxg2 {[%emt 0:01:00]} 23. Kxg2 {[%emt 0:00:30]} Qg5 {[%emt 0:01:30]} 24. h4 {[%emt 0:15:42]} Qd2+ {[%emt 0:01:30]} 25. Rf2 {[%emt 0:02:47]} Qe3 {[%emt 0:00:00]} 26. Qd5 {[%emt 0:05:47]} Rd8 {[%emt 0:02:00]} 27. Qf3 {[%emt 0:01:23]} Qxf3+ {[%emt 0:00:30]} 28. Rxf3 {[%emt 0:01:00]} Rc8 {[%emt 0:00:30]} 29. Rc1 {[%emt 0:00:19]} Rd7 {[%emt 0:00:00]} 30. Rf2 {[%emt 0:05:36]} Kf6 {[%emt 0:00:00]} 31. Rc4 {[%emt 0:00:16]} h5 {[%emt 0:00:30]} 32. Rb2 {[%emt 0:00:33]} Ke6 {[%emt 0:00:30]} 33. Rb5 {[%emt 0:00:21]} Rc6 {[%emt 0:00:30]} 34. Rb8 {[%emt 0:03:50]} Kd5 {[%emt 0:00:30]} 35. Rg8 {[%emt 0:00:30]} e4 {[%emt 0:01:30]} 1/2-1/2